[Event "26th OIBM 2023"]
[Site "Gmund am Tegernsee"]
[Date "2023.11.01"]
[Round "5.42"]
[White "Kick, Joachim"]
[Black "Shen, Tingrui"]
[Result "0-1"]
[ECO "D37"]
[WhiteElo "2117"]
[BlackElo "1740"]
[Annotator "NA"]
[PlyCount "64"]
[EventDate "2023.10.04"]
[EventType "swiss"]
[EventCountry "GER"]
[SourceTitle "playchess.com"]
[Source "ChessBase"]
[SourceQuality "1"]
[TimeControl "40/5400+30:1800+30"]

1. Nf3 {[%emt 0:00:03]} d5 {[%emt 0:00:25]} 2. d4 {[%emt 0:00:07]} Nf6 {[%emt 0:00:34]} 3. c4 {[%emt 0:00:14]} e6 {[%emt 0:00:32]} 4. Nc3 {[%emt 0:00:24]} a6 {[%emt 0:00:34]} 5. c5 {[%emt 0:06:09]} b6 {[%emt 0:00:39]} 6. cxb6 {[%emt 0:00:08]} c5 {[%emt 0:00:18]} 7. Bf4 {[%emt 0:00:19]} Qxb6 {[%emt 0:00:37]} 8. Na4 {[%emt 0:03:21]} Qb5 {[%emt 0:01:00]} 9. dxc5 {[%emt 0:17:33]} Ne4 {[%emt 0:00:46]} 10. a3 {[%emt 0:09:30]} Bd7 {[%emt 0:02:25]} 11. b3 {[%emt 0:09:15]} Bxc5 {[%emt 0:01:20]} 12. Nxc5 {[%emt 0:01:14]} Qxc5 {[%emt 0:01:04]} 13. Qd4 {[%emt 0:05:33]} f6 {[%emt 0:03:44]} 14. Qxc5 {[%emt 0:02:20]} Nxc5 {[%emt 0:01:08]} 15. b4 {[%emt 0:06:12]} Nb7 {[%emt 0:01:05]} 16. e3 {[%emt 0:08:05]} e5 {[%emt 0:02:58]} 17. Bg3 {[%emt 0:00:22]} Ke7 {[%emt 0:00:19]} 18. Be2 {[%emt 0:00:34]} Nd6 {[%emt 0:00:52]} 19. Nd2 {[%emt 0:02:45]} Ba4 {[%emt 0:07:15]} 20. Rc1 {[%emt 0:04:47]} Nd7 {[%emt 0:01:46]} 21. O-O {[%emt 0:01:46]} Nb5 {[%emt 0:04:30]} 22. e4 {[%emt 0:01:27]} d4 {[%emt 0:02:47]} 23. f4 {[%emt 0:00:27]} Nc3 {[%emt 0:00:50]} 24. Bd3 {[%emt 0:03:46]} Bb5 {[%emt 0:00:49]} 25. Bxb5 {[%emt 0:01:30]} axb5 {[%emt 0:00:18]} 26. Ra1 {[%emt 0:00:28]} Ne2+ {[%emt 0:03:30]} 27. Kf2 {[%emt 0:03:30]} Nxg3 {[%emt 0:00:51]} 28. hxg3 {[%emt 0:00:38]} Rhc8 {[%emt 0:00:23]} 29. Ke2 {[%emt 0:00:15]} Rc3 {[%emt 0:00:26]} 30. Rf3 {[%emt 0:00:15]} Rc2 {[%emt 0:00:33]} 31. Kd1 {[%emt 0:00:36]} Rb2 {[%emt 0:01:48]} 32. Kc1 {[%emt 0:01:16]} Rxb4 {[%emt 0:00:18]} 0-1

[Event "26th OIBM 2023"]
[Site "Gmund am Tegernsee"]
[Date "2023.11.01"]
[Round "5.43"]
[White "Beisteiner, Joachim"]
[Black "Mazatis, Benjamin"]
[Result "1/2-1/2"]
[ECO "C54"]
[WhiteElo "2115"]
[BlackElo "1666"]
[Annotator "ChessBase"]
[PlyCount "109"]
[EventDate "2023.10.04"]
[EventType "swiss"]
[EventCountry "GER"]
[SourceTitle "playchess.com"]
[Source "ChessBase"]
[SourceQuality "1"]
[TimeControl "40/5400+30:1800+30"]

1. e4 {[%emt 0:00:06]} e5 {[%emt 0:00:14]} 2. Nf3 {[%emt 0:00:14]} Nc6 {[%emt 0:00:09]} 3. Bc4 {[%emt 0:00:15]} Nf6 {[%emt 0:00:52]} 4. d3 {[%emt 0:00:16]} Bc5 {[%emt 0:00:41]} 5. c3 {[%emt 0:00:14]} d6 {[%emt 0:00:17]} 6. O-O {[%emt 0:00:40]} a5 {[%emt 0:00:10]} 7. Re1 {[%emt 0:00:45]} Ba7 {[%emt 0:00:08]} 8. Na3 {[%emt 0:01:27]} h6 {[%emt 0:01:57]} 9. Bb3 {[%emt 0:05:17]} O-O {[%emt 0:00:37]} 10. h3 {[%emt 0:01:03]} Re8 {[%emt 0:03:28]} 11. Nb5 {[%emt 0:04:44]} Bb6 {[%emt 0:01:27]} 12. Be3 {[%emt 0:00:54]} Bxe3 {[%emt 0:03:23]} 13. Rxe3 {[%emt 0:00:35]} Ne7 {[%emt 0:12:29]} 14. d4 {[%emt 0:02:59]} Ng6 {[%emt 0:05:37]} 15. dxe5 {[%emt 0:05:58]} Nxe5 {[%emt 0:02:37]} 16. Nbd4 {[%emt 0:00:39]} g6 {[%emt 0:01:43]} 17. Qc2 {[%emt 0:05:54]} Kg7 {[%emt 0:13:22]} 18. Rd1 {[%emt 0:06:31]} Qe7 {[%emt 0:03:17]} 19. Nxe5 {[%emt 0:06:39]} dxe5 {[%emt 0:00:30]} 20. Nb5 {[%emt 0:04:42]} Qc5 {[%emt 0:01:55]} 21. a4 {[%emt 0:00:48]} Be6 {[%emt 0:02:30]} 22. Bxe6 {[%emt 0:01:06]} Rxe6 {[%emt 0:00:31]} 23. Qe2 {[%emt 0:00:27]} Re7 {[%emt 0:06:37]} 24. Rd2 {[%emt 0:04:49]} Rd7 {[%emt 0:03:05]} 25. Rxd7 {[%emt 0:15:27]} Nxd7 {[%emt 0:01:52]} 26. Rd3 {[%emt 0:00:22]} Nf6 {[%emt 0:06:28]} 27. Rd2 {[%emt 0:02:45]} Re8 {[%emt 0:00:59]} 28. g3 {[%emt 0:10:48]} Re7 {[%emt 0:01:38]} 29. Kg2 {[%emt 0:00:17]} Rd7 {[%emt 0:02:58]} 30. Rxd7 {[%emt 0:00:18]} Nxd7 {[%emt 0:00:08]} 31. Qd3 {[%emt 0:00:28]} Qc6 {[%emt 0:03:56]} 32. f3 {[%emt 0:05:40]} Nb6 {[%emt 0:04:55]} 33. b3 {[%emt 0:00:34]} Qe6 {[%emt 0:03:22]} 34. c4 {[%emt 0:03:48]} Qe7 {[%emt 0:04:30]} 35. Qc3 {[%emt 0:03:30]} c6 {[%emt 0:01:14]} 36. Qxa5 {[%emt 0:00:52]} cxb5 {[%emt 0:02:42]} 37. Qxb6 {[%emt 0:00:07]} bxa4 {[%emt 0:00:22]} 38. bxa4 {[%emt 0:00:57]} Qa3 {[%emt 0:00:20]} 39. Qxb7 {[%emt 0:00:16]} Qa2+ {[%emt 0:00:53]} 40. Kg1 {[%emt 0:01:38]} Qxa4 {[%emt 0:01:08]} 41. Qb2 {[%emt 0:30:38]} Qa5 {[%emt 0:32:39]} 42. Qf2 {[%emt 0:01:31]} Kf8 {[%emt 0:03:00]} 43. c5 {[%emt 0:00:36]} Qa1+ {[%emt 0:00:00]} 44. Kg2 {[%emt 0:00:00]} Qc3 {[%emt 0:00:00]} 45. h4 {[%emt 0:00:00]} Ke7 {[%emt 0:00:00]} 46. g4 {[%emt 0:00:00]} g5 {[%emt 0:00:00]} 47. Kg3 {[%emt 0:00:00]} Qc1 {[%emt 0:00:00]} 48. Kh2 {[%emt 0:00:00]} Qf4+ {[%emt 0:00:00]} 49. Kh3 {[%emt 0:00:00]} Qc1 {[%emt 0:00:00]} 50. Kg2 {[%emt 0:00:00]} Qc3 {[%emt 0:00:00]} 51. h5 {[%emt 0:00:00]} Qc1 {[%emt 0:00:00]} 52. c6 {[%emt 0:00:00]} Qxc6 {[%emt 0:00:00]} 53. Qa7+ {[%emt 0:00:00]} Kf6 {[%emt 0:00:00]} 54. Qb8 {[%emt 0:00:00]} Qe6 {[%emt 0:00:00]} 55. Qb2 {[%emt 0:10:26]} 1/2-1/2

[Event "26th OIBM 2023"]
[Site "Gmund am Tegernsee"]
[Date "2023.11.01"]
[Round "5.44"]
[White "Renner, Kai"]
[Black "Grigorian, Volodia"]
[Result "1-0"]
[ECO "B45"]
[WhiteElo "2103"]
[BlackElo "1502"]
[Annotator "NA"]
[PlyCount "59"]
[EventDate "2023.10.04"]
[EventType "swiss"]
[EventCountry "GER"]
[SourceTitle "playchess.com"]
[Source "ChessBase"]
[SourceQuality "1"]
[TimeControl "40/5400+30:1800+30"]

1. e4 {[%emt 0:00:30]} c5 {[%emt 0:00:30]} 2. Nf3 {[%emt 0:00:04]} Nc6 {[%emt 0:00:04]} 3. d4 {[%emt 0:00:17]} cxd4 {[%emt 0:00:05]} 4. Nxd4 {[%emt 0:00:11]} Nf6 {[%emt 0:00:12]} 5. Nc3 {[%emt 0:00:16]} e6 {[%emt 0:00:37]} 6. Ndb5 {[%emt 0:00:59]} Bb4 {[%emt 0:01:29]} 7. a3 {[%emt 0:00:28]} Bxc3+ {[%emt 0:02:11]} 8. Nxc3 {[%emt 0:00:07]} O-O {[%emt 0:05:25]} 9. Qd6 {[%emt 0:09:30]} Qe7 {[%emt 0:09:36]} 10. Bf4 {[%emt 0:03:14]} a6 {[%emt 0:05:48]} 11. O-O-O {[%emt 0:05:19]} Re8 {[%emt 0:03:55]} 12. Be2 {[%emt 0:03:18]} e5 {[%emt 0:14:45]} 13. Qxe7 {[%emt 0:02:47]} Rxe7 {[%emt 0:03:48]} 14. Bg5 {[%emt 0:01:44]} Nd4 {[%emt 0:01:06]} 15. Bc4 {[%emt 0:03:35]} b5 {[%emt 0:07:15]} 16. Nd5 {[%emt 0:04:23]} Re8 {[%emt 0:07:17]} 17. Bxf6 {[%emt 0:18:48]} bxc4 {[%emt 0:07:21]} 18. Nc7 {[%emt 0:03:31]} Bb7 {[%emt 0:03:51]} 19. Nxe8 {[%emt 0:02:03]} Rxe8 {[%emt 0:03:26]} 20. Bxe5 {[%emt 0:06:41]} Ne2+ {[%emt 0:00:11]} 21. Kd2 {[%emt 0:00:13]} Rxe5 {[%emt 0:00:16]} 22. Kxe2 {[%emt 0:00:11]} Bxe4 {[%emt 0:00:13]} 23. Kd2 {[%emt 0:03:06]} Bxg2 {[%emt 0:01:11]} 24. Rhe1 {[%emt 0:00:25]} f6 {[%emt 0:00:42]} 25. Rxe5 {[%emt 0:06:02]} fxe5 {[%emt 0:00:07]} 26. Kc3 {[%emt 0:25:48]} d5 {[%emt 0:00:55]} 27. Re1 {[%emt 0:00:00]} e4 {[%emt 0:00:13]} 28. Kd4 {[%emt 0:00:00]} Kf7 {[%emt 0:00:23]} 29. Re3 {[%emt 0:00:00]} Ke6 {[%emt 0:02:31]} 30. Rg3 {[%emt 0:02:00]} 1-0

[Event "26th OIBM 2023"]
[Site "Gmund am Tegernsee"]
[Date "2023.11.02"]
[Round "6.1"]
[White "Stocek, Jiri"]
[Black "Vogel, Roven"]
[Result "1/2-1/2"]
[ECO "D47"]
[WhiteElo "2535"]
[BlackElo "2471"]
[Annotator "ChessBase"]
[PlyCount "155"]
[EventDate "2023.10.04"]
[EventType "swiss"]
[EventCountry "GER"]
[SourceTitle "playchess.com"]
[Source "ChessBase"]
[SourceQuality "1"]
[TimeControl "40/5400+30:1800+30"]

1. d4 {[%emt 0:00:50]} d5 {[%emt 0:00:08]} 2. Nf3 {[%emt 0:00:34]} Nf6 {[%emt 0:00:08]} 3. c4 {[%emt 0:00:41]} c6 {[%emt 0:00:12]} 4. Nc3 {[%emt 0:02:50]} e6 {[%emt 0:00:26]} 5. e3 {[%emt 0:02:43]} Nbd7 {[%emt 0:00:07]} 6. Bd3 {[%emt 0:00:05]} dxc4 {[%emt 0:00:09]} 7. Bxc4 {[%emt 0:00:03]} b5 {[%emt 0:00:08]} 8. Bb3 {[%emt 0:00:50]} b4 {[%emt 0:05:29]} 9. Ne2 {[%emt 0:01:59]} Bb7 {[%emt 0:03:40]} 10. O-O {[%emt 0:02:31]} Bd6 {[%emt 0:06:57]} 11. Nf4 {[%emt 0:03:59]} O-O {[%emt 0:02:09]} 12. Ng5 {[%emt 0:01:24]} Qe7 {[%emt 0:06:52]} 13. Bd2 {[%emt 0:21:05]} a5 {[%emt 0:10:07]} 14. a3 {[%emt 0:06:20]} c5 {[%emt 0:10:36]} 15. Re1 {[%emt 0:03:55]} e5 {[%emt 0:03:12]} 16. axb4 {[%emt 0:20:12]} cxb4 {[%emt 0:05:26]} 17. e4 {[%emt 0:02:20]} exf4 {[%emt 0:07:43]} 18. e5 {[%emt 0:00:15]} Nd5 {[%emt 0:00:07]} 19. Bxd5 {[%emt 0:11:11]} Bxd5 {[%emt 0:00:14]} 20. Bxf4 {[%emt 0:00:04]} Bb8 {[%emt 0:02:33]} 21. Qd3 {[%emt 0:00:11]} g6 {[%emt 0:00:31]} 22. Qb5 {[%emt 0:01:00]} h6 {[%emt 0:11:34]} 23. Qxd5 {[%emt 0:04:17]} Nb6 {[%emt 0:00:21]} 24. Qb5 {[%emt 0:01:43]} hxg5 {[%emt 0:00:05]} 25. Bd2 {[%emt 0:00:30]} Bc7 {[%emt 0:02:10]} 26. Rxa5 {[%emt 0:04:17]} Rxa5 {[%emt 0:01:27]} 27. Qxa5 {[%emt 0:00:03]} Nc4 {[%emt 0:01:38]} 28. Qxb4 {[%emt 0:00:09]} Qxb4 {[%emt 0:00:53]} 29. Bxb4 {[%emt 0:00:06]} Rb8 {[%emt 0:00:06]} 30. Bc3 {[%emt 0:03:27]} Nxb2 {[%emt 0:07:07]} 31. g3 {[%emt 0:00:36]} Rb3 {[%emt 0:01:04]} 32. Bd2 {[%emt 0:00:48]} Nd3 {[%emt 0:02:18]} 33. Ra1 {[%emt 0:00:24]} g4 {[%emt 0:01:42]} 34. Kf1 {[%emt 0:01:14]} Rb2 {[%emt 0:01:07]} 35. Be3 {[%emt 0:01:19]} Nb4 {[%emt 0:00:18]} 36. Bg5 {[%emt 0:00:56]} Nd5 {[%emt 0:01:02]} 37. Re1 {[%emt 0:01:15]} Bb6 {[%emt 0:04:02]} 38. Re4 {[%emt 0:00:14]} Rb1+ {[%emt 0:02:29]} 39. Kg2 {[%emt 0:00:05]} Rd1 {[%emt 0:00:14]} 40. Rxg4 {[%emt 0:00:47]} Bxd4 {[%emt 0:00:39]} 41. Bf4 {[%emt 0:12:22]} Rd3 {[%emt 0:16:56]} 42. h4 {[%emt 0:03:06]} Kf8 {[%emt 0:04:58]} 43. h5 {[%emt 0:04:10]} gxh5 {[%emt 0:00:04]} 44. Rh4 {[%emt 0:00:32]} Ke7 {[%emt 0:01:06]} 45. Rxh5 {[%emt 0:00:23]} Rb3 {[%emt 0:02:31]} 46. Rh6 {[%emt 0:07:47]} Rb2 {[%emt 0:00:56]} 47. Kf3 {[%emt 0:00:58]} Rxf2+ {[%emt 0:07:45]} 48. Ke4 {[%emt 0:00:08]} Nxf4 {[%emt 0:00:04]} 49. gxf4 {[%emt 0:00:05]} Bb2 {[%emt 0:00:20]} 50. Rh4 {[%emt 0:01:18]} Rc2 {[%emt 0:00:48]} 51. Kf5 {[%emt 0:01:05]} Rc4 {[%emt 0:00:15]} 52. Rh3 {[%emt 0:02:20]} Bc1 {[%emt 0:00:06]} 53. Rf3 {[%emt 0:00:05]} Rc6 {[%emt 0:00:27]} 54. Rb3 {[%emt 0:00:25]} Rc4 {[%emt 0:01:08]} 55. Rf3 {[%emt 0:00:05]} f6 {[%emt 0:00:55]} 56. exf6+ {[%emt 0:00:46]} Kf7 {[%emt 0:00:05]} 57. Rf1 {[%emt 0:00:20]} Rc5+ {[%emt 0:00:23]} 58. Kg4 {[%emt 0:00:04]} Kxf6 {[%emt 0:00:05]} 59. Rd1 {[%emt 0:00:30]} Rc4 {[%emt 0:00:07]} 60. Rf1 {[%emt 0:00:04]} Ba3 {[%emt 0:00:12]} 61. Rf3 {[%emt 0:01:46]} Bd6 {[%emt 0:00:06]} 62. Rf1 {[%emt 0:00:03]} Rc8 {[%emt 0:00:04]} 63. Rh1 {[%emt 0:00:08]} Kg6 {[%emt 0:01:52]} 64. Rd1 {[%emt 0:00:21]} Be7 {[%emt 0:00:11]} 65. Ra1 {[%emt 0:00:39]} Bf6 {[%emt 0:00:20]} 66. Ra6 {[%emt 0:00:46]} Rc1 {[%emt 0:00:08]} 67. Rb6 {[%emt 0:00:19]} Rg1+ {[%emt 0:00:08]} 68. Kf3 {[%emt 0:00:04]} Kf7 {[%emt 0:00:29]} 69. Ke4 {[%emt 0:00:21]} Ra1 {[%emt 0:00:21]} 70. Kf5 {[%emt 0:00:18]} Ra5+ {[%emt 0:00:06]} 71. Kg4 {[%emt 0:00:05]} Be7 {[%emt 0:00:03]} 72. Rb1 {[%emt 0:00:27]} Rd5 {[%emt 0:00:06]} 73. Rh1 {[%emt 0:00:26]} Bd6 {[%emt 0:00:05]} 74. Rf1 {[%emt 0:00:11]} Kf6 {[%emt 0:00:06]} 75. Rf3 {[%emt 0:00:31]} Rd4 {[%emt 0:00:07]} 76. Rf1 {[%emt 0:00:09]} Bxf4 {[%emt 0:00:22]} 77. Rxf4+ {[%emt 0:00:06]} Rxf4+ {[%emt 0:00:03]} 78. Kxf4 {[%emt 0:00:02]} 1/2-1/2

[Event "26th OIBM 2023"]
[Site "Gmund am Tegernsee"]
[Date "2023.11.02"]
[Round "6.2"]
[White "Gopal G.N."]
[Black "Weishaeutel, Moritz"]
[Result "1-0"]
[ECO "B76"]
[WhiteElo "2573"]
[BlackElo "2403"]
[Annotator "ChessBase"]
[PlyCount "109"]
[EventDate "2023.10.04"]
[EventType "swiss"]
[EventCountry "GER"]
[SourceTitle "playchess.com"]
[Source "ChessBase"]
[SourceQuality "1"]
[TimeControl "40/5400+30:1800+30"]

1. e4 {[%emt 0:00:03]} c5 {[%emt 0:00:03]} 2. Nf3 {[%emt 0:00:05]} d6 {[%emt 0:00:03]} 3. d4 {[%emt 0:00:03]} cxd4 {[%emt 0:00:04]} 4. Nxd4 {[%emt 0:00:03]} Nf6 {[%emt 0:00:03]} 5. Nc3 {[%emt 0:00:04]} g6 {[%emt 0:00:03]} 6. Be3 {[%emt 0:01:03]} Bg7 {[%emt 0:00:04]} 7. f3 {[%emt 0:00:14]} O-O {[%emt 0:00:05]} 8. Qd2 {[%emt 0:00:11]} Nc6 {[%emt 0:00:04]} 9. O-O-O {[%emt 0:01:23]} d5 {[%emt 0:00:03]} 10. exd5 {[%emt 0:00:59]} Nxd5 {[%emt 0:00:04]} 11. Nxc6 {[%emt 0:00:09]} bxc6 {[%emt 0:00:03]} 12. Bd4 {[%emt 0:00:03]} e5 {[%emt 0:00:03]} 13. Bc5 {[%emt 0:01:00]} Re8 {[%emt 0:00:04]} 14. Ne4 {[%emt 0:10:37]} Qc7 {[%emt 0:00:04]} 15. h4 {[%emt 0:14:11]} f5 {[%emt 0:00:06]} 16. Nd6 {[%emt 0:01:14]} Rd8 {[%emt 0:00:04]} 17. Nxc8 {[%emt 0:01:42]} Raxc8 {[%emt 0:00:04]} 18. h5 {[%emt 0:03:21]} Nb6 {[%emt 0:00:16]} 19. Bxb6 {[%emt 0:03:26]} Rxd2 {[%emt 0:00:09]} 20. Bc4+ {[%emt 0:01:31]} Kf8 {[%emt 0:00:05]} 21. Bxc7 {[%emt 0:00:07]} Rxd1+ {[%emt 0:00:04]} 22. Rxd1 {[%emt 0:00:18]} Rxc7 {[%emt 0:00:04]} 23. hxg6 {[%emt 0:01:59]} Bh6+ {[%emt 0:00:05]} 24. Kb1 {[%emt 0:00:03]} hxg6 {[%emt 0:00:03]} 25. Rd6 {[%emt 0:04:55]} Kg7 {[%emt 0:00:04]} 26. Re6 {[%emt 0:04:12]} Rd7 {[%emt 0:00:43]} 27. Bd3 {[%emt 0:15:59]} Bf4 {[%emt 0:06:19]} 28. a4 {[%emt 0:05:00]} Rd4 {[%emt 0:13:04]} 29. Rxc6 {[%emt 0:18:19]} Rxa4 {[%emt 0:04:23]} 30. c3 {[%emt 0:00:21]} Ra5 {[%emt 0:22:42]} 31. Rd6 {[%emt 0:03:08]} e4 {[%emt 0:02:49]} 32. Rd7+ {[%emt 0:00:18]} Kf6 {[%emt 0:00:13]} 33. fxe4 {[%emt 0:00:35]} fxe4 {[%emt 0:00:07]} 34. Bxe4 {[%emt 0:00:17]} Re5 {[%emt 0:00:38]} 35. Bf3 {[%emt 0:02:36]} Re7 {[%emt 0:00:22]} 36. Rd1 {[%emt 0:01:56]} Rc7 {[%emt 0:06:10]} 37. Kc2 {[%emt 0:00:24]} Be5 {[%emt 0:03:23]} 38. Rd5 {[%emt 0:03:21]} g5 {[%emt 0:05:35]} 39. Ra5 {[%emt 0:02:05]} Kf5 {[%emt 0:09:39]} 40. Ra4 {[%emt 0:00:49]} Bf4 {[%emt 0:01:46]} 41. Ra6 {[%emt 0:07:28]} Be5 {[%emt 0:03:40]} 42. Bd5 {[%emt 0:00:28]} Kf4 {[%emt 0:03:45]} 43. Ra4+ {[%emt 0:01:18]} Kg3 {[%emt 0:04:20]} 44. c4 {[%emt 0:02:14]} Bd4 {[%emt 0:04:06]} 45. Ra3+ {[%emt 0:02:24]} Kf4 {[%emt 0:05:19]} 46. b4 {[%emt 0:00:35]} Ke5 {[%emt 0:00:42]} 47. Rg3 {[%emt 0:03:28]} Rg7 {[%emt 0:04:06]} 48. Rg4 {[%emt 0:00:53]} Bf2 {[%emt 0:02:13]} 49. Re4+ {[%emt 0:00:16]} Kd6 {[%emt 0:00:17]} 50. Re6+ {[%emt 0:08:51]} Kc7 {[%emt 0:01:37]} 51. Kd3 {[%emt 0:01:08]} Kb8 {[%emt 0:03:04]} 52. c5 {[%emt 0:02:25]} a5 {[%emt 0:08:51]} 53. Rf6 {[%emt 0:01:37]} Be1 {[%emt 0:01:03]} 54. Rf8+ {[%emt 0:00:28]} Kc7 {[%emt 0:00:18]} 55. b5 {[%emt 0:00:15]} 1-0

[Event "26th OIBM 2023"]
[Site "Gmund am Tegernsee"]
[Date "2023.11.02"]
[Round "6.4"]
[White "Golubka, Petro"]
[Black "Nguyen, Alex Dac-Vuong"]
[Result "1-0"]
[ECO "E25"]
[WhiteElo "2434"]
[BlackElo "2333"]
[Annotator "ChessBase"]
[PlyCount "86"]
[EventDate "2023.10.04"]
[EventType "swiss"]
[EventCountry "GER"]
[SourceTitle "playchess.com"]
[Source "ChessBase"]
[SourceQuality "1"]
[TimeControl "40/5400+30:1800+30"]

1. d4 {[%emt 0:09:44]} Nf6 {[%emt 0:00:03]} 2. c4 {[%emt 0:00:22]} e6 {[%emt 0:00:03]} 3. Nc3 {[%emt 0:00:12]} Bb4 {[%emt 0:00:05]} 4. f3 {[%emt 0:00:13]} d5 {[%emt 0:00:33]} 5. a3 {[%emt 0:00:13]} Bxc3+ {[%emt 0:00:04]} 6. bxc3 {[%emt 0:00:16]} c5 {[%emt 0:00:06]} 7. cxd5 {[%emt 0:00:21]} Nxd5 {[%emt 0:05:42]} 8. dxc5 {[%emt 0:01:19]} Qa5 {[%emt 0:01:28]} 9. e4 {[%emt 0:01:11]} Nf6 {[%emt 0:00:08]} 10. Be3 {[%emt 0:00:41]} Nfd7 {[%emt 0:00:15]} 11. a4 {[%emt 0:14:44]} O-O {[%emt 0:07:14]} 12. Kf2 {[%emt 0:20:08]} Nxc5 {[%emt 0:09:50]} 13. Qd6 {[%emt 0:00:59]} Nba6 {[%emt 0:05:11]} 14. Bxa6 {[%emt 0:02:30]} Nxa6 {[%emt 0:00:06]} 15. Ne2 {[%emt 0:00:30]} Rd8 {[%emt 0:05:15]} 16. Qe7 {[%emt 0:07:59]} Bd7 {[%emt 0:15:57]} 17. Rhd1 {[%emt 0:01:01]} Bc6 {[%emt 0:00:09]} 18. Nd4 {[%emt 0:09:30]} Be8 {[%emt 0:01:56]} 19. Nb3 {[%emt 0:01:48]} Qc7 {[%emt 0:02:13]} 20. Qxc7 {[%emt 0:00:42]} Nxc7 {[%emt 0:00:02]} 21. Rxd8 {[%emt 0:00:18]} Rxd8 {[%emt 0:00:02]} 22. Bxa7 {[%emt 0:00:24]} e5 {[%emt 0:03:48]} 23. Bb6 {[%emt 0:08:37]} Rc8 {[%emt 0:05:35]} 24. c4 {[%emt 0:02:46]} Na8 {[%emt 0:06:45]} 25. c5 {[%emt 0:00:25]} Nxb6 {[%emt 0:00:02]} 26. cxb6 {[%emt 0:00:10]} Rc2+ {[%emt 0:00:04]} 27. Kg3 {[%emt 0:01:41]} Rb2 {[%emt 0:00:05]} 28. Ra3 {[%emt 0:00:09]} f5 {[%emt 0:05:49]} 29. exf5 {[%emt 0:02:17]} Bxa4 {[%emt 0:00:03]} 30. Na5 {[%emt 0:03:04]} Bb5 {[%emt 0:14:51]} 31. Rb3 {[%emt 0:03:17]} Rxb3 {[%emt 0:00:04]} 32. Nxb3 {[%emt 0:00:07]} Bc6 {[%emt 0:00:24]} 33. h4 {[%emt 0:01:02]} Kf7 {[%emt 0:02:34]} 34. Kf2 {[%emt 0:00:20]} Ke7 {[%emt 0:04:24]} 35. Nc5 {[%emt 0:01:53]} h6 {[%emt 0:02:42]} 36. g4 {[%emt 0:01:04]} Bd5 {[%emt 0:00:20]} 37. Ke3 {[%emt 0:01:25]} Bc6 {[%emt 0:02:56]} 38. f4 {[%emt 0:01:04]} Kd6 {[%emt 0:01:35]} 39. Ne6 {[%emt 0:00:28]} g6 {[%emt 0:00:36]} 40. fxe5+ {[%emt 0:01:31]} Kxe5 {[%emt 0:00:09]} 41. Nd8 {[%emt 0:30:27]} Bg2 {[%emt 0:11:36]} 42. fxg6 {[%emt 0:00:00]} Kf6 {[%emt 0:00:04]} 43. h5 {[%emt 0:00:00]} Bd5 {[%emt 0:00:08]} 1-0

[Event "26th OIBM 2023"]
[Site "Gmund am Tegernsee"]
[Date "2023.11.02"]
[Round "6.5"]
[White "Mastrovasilis, Dimitrios"]
[Black "Reimann, Sebastian"]
[Result "1-0"]
[ECO "B53"]
[WhiteElo "2573"]
[BlackElo "2342"]
[Annotator "ChessBase"]
[PlyCount "59"]
[EventDate "2023.10.04"]
[EventType "swiss"]
[EventCountry "GER"]
[SourceTitle "playchess.com"]
[Source "ChessBase"]
[SourceQuality "1"]
[TimeControl "40/5400+30:1800+30"]

1. e4 {[%emt 0:02:33]} c5 {[%emt 0:00:09]} 2. Nf3 {[%emt 0:00:14]} d6 {[%emt 0:00:06]} 3. d4 {[%emt 0:00:20]} cxd4 {[%emt 0:00:07]} 4. Qxd4 {[%emt 0:00:09]} Nf6 {[%emt 0:00:37]} 5. Bg5 {[%emt 0:01:31]} Bg4 {[%emt 0:04:14]} 6. Nc3 {[%emt 0:05:28]} Nc6 {[%emt 0:02:33]} 7. Bb5 {[%emt 0:06:49]} Bxf3 {[%emt 0:03:11]} 8. gxf3 {[%emt 0:00:35]} Qa5 {[%emt 0:03:44]} 9. O-O-O {[%emt 0:22:46]} Rc8 {[%emt 0:09:15]} 10. Bxf6 {[%emt 0:20:18]} gxf6 {[%emt 0:02:22]} 11. Qd5 {[%emt 0:00:05]} Qd8 {[%emt 0:12:32]} 12. Qh5 {[%emt 0:01:48]} a6 {[%emt 0:03:43]} 13. Bc4 {[%emt 0:01:33]} Ne5 {[%emt 0:00:09]} 14. Bd5 {[%emt 0:00:25]} Qd7 {[%emt 0:24:59]} 15. f4 {[%emt 0:01:11]} Ng6 {[%emt 0:00:05]} 16. f5 {[%emt 0:02:29]} e6 {[%emt 0:00:59]} 17. Bb3 {[%emt 0:05:11]} Nf4 {[%emt 0:02:50]} 18. Qh4 {[%emt 0:01:38]} e5 {[%emt 0:00:25]} 19. Nd5 {[%emt 0:06:51]} Nxd5 {[%emt 0:00:31]} 20. Rxd5 {[%emt 0:00:15]} h5 {[%emt 0:00:33]} 21. Kb1 {[%emt 0:02:04]} Be7 {[%emt 0:02:44]} 22. Rg1 {[%emt 0:01:02]} Kd8 {[%emt 0:00:18]} 23. Rd3 {[%emt 0:01:18]} Rf8 {[%emt 0:01:03]} 24. Qxh5 {[%emt 0:02:18]} Kc7 {[%emt 0:00:32]} 25. Bxf7 {[%emt 0:00:37]} Qa4 {[%emt 0:00:11]} 26. Bd5 {[%emt 0:01:54]} Kb8 {[%emt 0:00:10]} 27. Rb3 {[%emt 0:00:39]} Rc7 {[%emt 0:00:16]} 28. h4 {[%emt 0:01:40]} Qd4 {[%emt 0:00:09]} 29. Qe2 {[%emt 0:00:29]} Rh8 {[%emt 0:00:11]} 30. Qxa6 {[%emt 0:00:44]} 1-0